fUSD/lending_fUSD_20240407
["ID","MTS","AMOUNT","RATE_DAILY","PERIOD"]
[321721680,1712458666504,278.93549459,0.00018053,2]
[321721681,1712458672793,938.91671041,0.00019003,2]
[321721682,1712458804735,16000.0,0.0003,30]
[321721683,1712458823428,175.099973,0.00020274,2]
[321721684,1712458857559,463.913844,0.00020404,2]
[321721685,1712458944311,481.3,0.00018822,2]
[321721686,1712459180156,193.8,0.00016447,2]
[321721688,1712459419014,157.589976,0.00020274,2]
[321721697,1712459432320,-155.0,0.00020545,2]
[321721699,1712459432330,-299.97708632,0.00020545,2]
[321721704,1712459433128,-340.13383838,0.00020545,2]
[321721705,1712459433137,-397.39873888,0.00020546,2]
[321721706,1712459433146,-37.68307743,0.00020547,2]
[321721707,1712459433184,-6169.87289983,0.00020547,2]
[321721708,1712459433195,-203.67,0.000206,2]
[321721709,1712459433205,-2842.12785092,0.00020611,2]
[321721710,1712459433214,-150.0,0.00020675,2]
[321721711,1712459433224,-158.6251042,0.00020786,2]
[321721712,1712459433233,-1000.0,0.00020889,2]
[321721713,1712459433242,-2470.22536311,0.000209,2]
[321721714,1712459433252,-207.22621041,0.0002094,2]
[321721715,1712459433262,-150.7,0.00020941,2]
[321721716,1712459433271,-150.0,0.00020999,2]
[321721717,1712459433280,-300.0,0.00020999,2]
[321721718,1712459433290,-1303.59757153,0.00021,2]
[321721719,1712459433401,-2327.93068496,0.00021,2]
[321721725,1712459438445,-7805.65026631,0.000209,2]
[321721726,1712459438455,-8132.71292305,0.00021,2]
[321721727,1712459438554,-1379.10958307,0.00021,2]
[321721728,1712459438611,-327.5,0.00021,2]
[321721738,1712459440667,-3371.76921599,0.00021,2]
[321721739,1712459440679,-69370.85329407,0.00021,2]
[321721740,1712459440782,-3594.58222379,0.00021,2]
[321721745,1712459443580,-2095.5278501,0.00021,2]
[321721747,1712459446537,-3332.315261,0.00021,2]
[321721748,1712459446971,-1757.16927755,0.00021,2]
[321721749,1712459511076,501.8,0.00018398,2]
[321721750,1712459558884,8000.0,0.00018398,2]
[321721751,1712459581355,152.0,0.0002992,30]
[321721752,1712459703712,16000.0,0.0003,30]
[321721753,1712459940007,203.17,0.00020315,2]
[321721754,1712459991895,228.20651131,0.0002789,30]
[321721755,1712459992109,228.20651131,0.00028027,30]
[321721756,1712459992342,228.20651131,0.00028137,30]
[321721757,1712459992577,228.20651131,0.00028247,30]
[321721758,1712459992811,228.20651131,0.00028384,30]
[321721759,1712459993032,228.20651131,0.00028493,30]
[321721760,1712459993250,228.20651131,0.00028603,30]
[321721761,1712459993491,228.20651131,0.00028712,30]
[321721762,1712459993716,228.20651131,0.00028849,30]
[321721763,1712459993963,228.20651131,0.00028959,30]
[321721764,1712459994204,228.20651131,0.00029068,30]
[321721765,1712459994441,228.20651131,0.00029205,30]
[321721766,1712459994663,228.20651131,0.00029315,30]
[321721767,1712459994884,228.20651131,0.00029425,30]
[321721768,1712459995111,228.20651131,0.00029562,30]
[321721769,1712459997451,526.6,0.00018947,2]
[321721770,1712460578084,500.27,0.00018915,2]
[321721771,1712460604348,16000.0,0.0003,30]
[321721774,1712460631598,-155.0,0.00020538,2]
[321721775,1712460631610,-500.0,0.00020539,2]
[321721776,1712460631623,-245.0,0.00020551,2]
[321721780,1712460637787,-298.22456376,0.00020537,2]
[321721805,1712460639960,-201.77543624,0.00020537,2]
[321721806,1712460639971,-103.37957701,0.00020551,2]
[321721807,1712460639980,-212.60917162,0.00020561,2]
[321721808,1712460639990,-202.17,0.00020789,2]
[321721809,1712460639999,-1000.0,0.00020847,2]
[321721810,1712460640018,-91.99531264,0.00020999,2]
[321721811,1712460640034,-58.00468736,0.00020999,2]
[321721812,1712460640044,-668.13411877,0.00021,2]
[321721816,1712460642683,-1199.96576911,0.00021,2]
[321721819,1712460668259,192.67306959,0.00021781,7]
[321721820,1712460668593,356.84587568,0.00021781,7]
[321721823,1712461210959,528.73,0.00018935,2]
[321721824,1712461253570,378.0,0.0003,30]
[321721826,1712461504085,16000.0,0.0003,30]
[321721827,1712461507798,175.18935031,0.00019701,4]
[321721828,1712461508083,175.18935031,0.00019723,4]
[321721829,1712461508451,175.18935031,0.00019746,4]
[321721830,1712461509319,175.18935031,0.00019768,4]
[321721831,1712461509626,175.18935031,0.0001979,4]
[321721832,1712461509918,175.18935031,0.00019812,4]
[321721833,1712461510224,175.18935031,0.00019834,4]
[321721834,1712461510589,175.18935031,0.00019856,4]
[321721835,1712461511125,175.18935031,0.00019878,4]
[321721836,1712461511186,175.18935031,0.000199,4]
[321721837,1712461511660,175.18935031,0.00019922,4]
[321721838,1712461511977,175.18935031,0.00019945,4]
[321721839,1712461512287,175.18935031,0.00019967,4]
[321721840,1712461512599,175.18935031,0.00019989,4]
[321721841,1712461512898,175.18935031,0.00020011,4]
[321721842,1712461513187,175.18935031,0.00020033,4]
[321721843,1712461513480,175.18935031,0.00020055,4]
[321721844,1712461513777,175.18935031,0.00020077,4]
[321721845,1712461514101,175.18935031,0.00020099,4]
[321721846,1712461514406,175.18935031,0.00020121,4]
[321721847,1712461514716,175.18935031,0.00020144,4]
[321721848,1712461515033,175.18935031,0.00020166,4]
[321721849,1712461515403,175.18935031,0.00020188,4]
[321721850,1712461515720,175.18935031,0.0002021,4]
[321721851,1712461516033,175.18935031,0.00020232,4]
[321721852,1712461516358,175.18935031,0.00020254,4]
[321721853,1712461516854,175.18935031,0.00020276,4]
[321721854,1712461517059,175.18935031,0.00020298,4]
[321721855,1712461517819,175.18935031,0.0002032,4]
[321721856,1712461518122,175.18935031,0.00020343,4]
[321721857,1712461518411,175.18935031,0.00020365,4]
[321721858,1712461519273,175.18935031,0.00020387,4]
[321721859,1712461519575,175.18935031,0.00020409,4]
[321721860,1712461519965,175.18935031,0.00020431,4]
[321721861,1712461520261,175.18935031,0.00020453,4]
[321721862,1712461520558,175.18935031,0.00020475,4]
[321721863,1712461520870,175.18935031,0.00020497,4]
[321721864,1712461521509,175.18935031,0.00020519,4]
[321721865,1712461521550,175.18935031,0.00020542,4]
[321721866,1712461521858,175.18935031,0.00020564,4]
[321721867,1712461522160,175.18935031,0.00020586,4]
[321721868,1712461522478,175.18935031,0.00020608,4]
[321721869,1712461522963,175.18935031,0.0002063,4]
[321721870,1712461523270,175.18935031,0.00020652,4]
[321721871,1712461523601,175.18935031,0.00020674,4]
[321721872,1712461523910,175.18935031,0.00020696,4]
[321721873,1712461524218,175.18935031,0.00020719,4]
[321721874,1712461524512,175.18935031,0.00020741,4]
[321721875,1712461524931,175.18935031,0.00020763,4]
[321721876,1712461525103,175.18935031,0.00020785,4]
[321721877,1712461525427,175.18935031,0.00020807,4]
[321721878,1712461525725,175.18935031,0.00020829,4]
[321721879,1712461526599,175.18935031,0.00020851,4]
[321721880,1712461526894,175.18935031,0.00020873,4]
[321721881,1712461527192,175.18935031,0.00020895,4]
[321721882,1712461528032,175.18935031,0.00020918,4]
[321721883,1712461528524,175.18935031,0.0002094,4]
[321721884,1712461528816,175.18935031,0.00020962,4]
[321721885,1712461529133,175.18935031,0.00020984,4]
[321721886,1712461529494,175.18935031,0.00021006,4]
[321721887,1712461529801,175.18935031,0.00021028,4]
[321721888,1712461530108,175.18935031,0.0002105,4]
[321721889,1712461530949,175.18935031,0.00021072,4]
[321721890,1712461531257,175.18935031,0.00021094,4]
[321721891,1712461531801,175.18935031,0.00021117,4]
[321721892,1712461531937,175.18935031,0.00021139,4]
[321721893,1712461532205,175.18935031,0.00021161,4]
[321721894,1712461532506,175.18935031,0.00021183,4]
[321721895,1712461532829,175.18935031,0.00021205,4]
[321721896,1712461533128,175.18935031,0.00021227,4]
[321721897,1712461533637,175.18935031,0.00021249,4]
[321721898,1712461533963,175.18935031,0.00021271,4]
[321721899,1712461534271,175.18935031,0.00021293,4]
[321721900,1712461534564,175.18935031,0.00021316,4]
[321721901,1712461534928,175.18935031,0.00021338,4]
[321721902,1712461535247,175.18935031,0.0002136,4]
[321721903,1712461535513,175.18935031,0.00021382,4]
[321721904,1712461536631,175.18935031,0.00021404,4]
[321721905,1712461537328,175.18935031,0.00021426,4]
[321721906,1712461537559,175.18935031,0.00021448,4]
[321721907,1712461537908,175.18935031,0.0002147,4]
[321721908,1712461538208,175.18935031,0.00021492,4]
[321721909,1712461538499,175.18935031,0.00021515,4]
[321721910,1712461538852,175.18935031,0.00021537,4]
[321721911,1712461539122,175.18935031,0.00021559,4]
[321721912,1712461539423,175.18935031,0.00021581,4]
[321721913,1712461539727,175.18935031,0.00021603,4]
[321721914,1712461540016,175.18935031,0.00021625,4]
[321721915,1712461540319,175.18935031,0.00021647,4]
[321721916,1712461540694,175.18935031,0.00021669,4]
[321721917,1712461540981,175.18935031,0.00021691,4]
[321721918,1712461541271,175.18935031,0.00021714,4]
[321721919,1712461541565,175.18935031,0.00021736,4]
[321721920,1712461542106,175.18935031,0.00021758,4]
[321721921,1712461542193,175.18935031,0.0002178,4]
[321721922,1712461542491,175.18935031,0.00021802,4]
[321721923,1712461542788,175.18935031,0.00021824,4]
[321721924,1712461543119,175.18935031,0.00021846,4]
[321721925,1712461543450,175.18935031,0.00021868,4]
[321721926,1712461543850,175.18935031,0.0002189,4]
[321721927,1712461545868,150.0,0.00019701,4]
[321721928,1712461546143,150.0,0.00019759,4]
[321721929,1712461547389,150.0,0.00019817,4]
[321721930,1712461547715,150.0,0.00019874,4]
[321721931,1712461548007,95.0542399,0.00019932,4]
[321721932,1712461548035,54.9457601,0.00019932,4]
[321721933,1712461548312,150.0,0.00019989,4]
[321721934,1712461548627,150.0,0.00020047,4]
[321721935,1712461548903,150.0,0.00020105,4]
[321721936,1712461549245,150.0,0.00020162,4]
[321721937,1712461549581,150.0,0.0002022,4]
[321721938,1712461549878,150.0,0.00020277,4]
[321721939,1712461550174,150.0,0.00020335,4]
[321721940,1712461550525,150.0,0.00020393,4]
[321721941,1712461550830,150.0,0.0002045,4]
[321721942,1712461551174,150.0,0.00020508,4]
[321721943,1712461551523,150.0,0.00020565,4]
[321721944,1712461551878,150.0,0.00020623,4]
[321721945,1712461552418,150.0,0.00020681,4]
[321721946,1712461552468,150.0,0.00020738,4]
[321721947,1712461552830,150.0,0.00020796,4]
[321721948,1712461553205,150.0,0.00020853,4]
[321721949,1712461553419,150.0,0.00020911,4]
[321721950,1712461553743,150.0,0.00020969,4]
[321721951,1712461554046,150.0,0.00021026,4]
[321721952,1712461554364,150.0,0.00021084,4]
[321721953,1712461554690,150.0,0.00021142,4]
[321721954,1712461554990,150.0,0.00021199,4]
[321721955,1712461555276,150.0,0.00021257,4]
[321721956,1712461555564,150.0,0.00021314,4]
[321721957,1712461555865,150.0,0.00021372,4]
[321721958,1712461556185,150.0,0.0002143,4]
[321721959,1712461556497,150.0,0.00021487,4]
[321721960,1712461560769,150.17963313,0.00019701,4]
[321721961,1712461564938,150.0,0.00019701,4]
[321721962,1712461565240,150.0,0.00019743,4]
[321721963,1712461565523,150.0,0.00019786,4]
[321721964,1712461565846,150.0,0.00019828,4]
[321721965,1712461566189,150.0,0.0001987,4]
[321721966,1712461567174,150.0,0.00019912,4]
[321721967,1712461567466,150.0,0.00019954,4]
[321721968,1712461567804,150.0,0.00019996,4]
[321721969,1712461568119,150.0,0.00020038,4]
[321721970,1712461568457,150.0,0.0002008,4]
[321721971,1712461568712,150.0,0.00020122,4]
[321721972,1712461569027,150.0,0.00020164,4]
[321721973,1712461569329,150.0,0.00020207,4]
[321721974,1712461569641,150.0,0.00020249,4]
[321721975,1712461569980,150.0,0.00020291,4]
[321721976,1712461570329,150.0,0.00020333,4]
[321721977,1712461570637,150.0,0.00020375,4]
[321721978,1712461570932,150.0,0.00020417,4]
[321721979,1712461571272,150.0,0.00020459,4]
[321721980,1712461571755,150.0,0.00020501,4]
[321721981,1712461571874,150.0,0.00020543,4]
[321721982,1712461572201,150.0,0.00020585,4]
[321721983,1712461572511,150.0,0.00020628,4]
[321721984,1712461572820,150.0,0.0002067,4]
[321721985,1712461573308,150.0,0.00020712,4]
[321721986,1712461573512,150.0,0.00020754,4]
[321721987,1712461573798,150.0,0.00020796,4]
[321721988,1712461574094,150.0,0.00020838,4]
[321721989,1712461574655,150.0,0.0002088,4]
[321721990,1712461575001,150.0,0.00020922,4]
[321721991,1712461575326,150.0,0.00020964,4]
[321721992,1712461575632,150.0,0.00021006,4]
[321721993,1712461575971,150.0,0.00021048,4]
[321721994,1712461576285,150.0,0.00021091,4]
[321721995,1712461576575,150.0,0.00021133,4]
[321721996,1712461576883,150.0,0.00021175,4]
[321721997,1712461577205,150.0,0.00021217,4]
[321721998,1712461577517,150.0,0.00021259,4]
[321721999,1712461578003,150.0,0.00021301,4]
[321722000,1712461578122,150.0,0.00021343,4]
[321722001,1712461578424,150.0,0.00021385,4]
[321722002,1712461578739,150.0,0.00021427,4]
[321722003,1712461579069,150.0,0.00021469,4]
[321722004,1712461588786,150.0,0.00019701,4]
[321722005,1712461592859,150.0,0.00019701,4]
[321722006,1712461593173,150.0,0.000199,4]
[321722007,1712461593470,150.0,0.00020099,4]
[321722008,1712461593971,150.0,0.00020298,4]
[321722009,1712461594052,150.0,0.00020497,4]
[321722010,1712461594364,150.0,0.00020696,4]
[321722011,1712461594705,150.0,0.00020895,4]
[321722012,1712461594999,150.0,0.00021094,4]
[321722013,1712461595352,150.0,0.00021293,4]
[321722014,1712461597285,150.0,0.00021492,4]
[321722015,1712461600686,150.0,0.00019701,4]
[321722016,1712461772689,212.60917162,0.000205,2]
[321722017,1712461774797,502.29,0.0001873,2]
[321722021,1712461833185,-155.0,0.00020598,2]
[321722022,1712461833196,-5660.22473358,0.00020599,2]
[321722023,1712461833206,-514.6422937,0.000206,2]
[321722024,1712461833216,-150.0,0.00020624,2]
[321722025,1712461833225,-1000.0,0.00020648,2]
[321722026,1712461833235,-163.06,0.00020864,2]
[321722027,1712461833245,-154.45,0.00020945,2]
[321722028,1712461833254,-502.29,0.00020994,2]
[321722029,1712461833265,-8831.35493892,0.00021,2]
[321722037,1712461837887,-265.38,0.00021,2]
[321722039,1712461839855,-442.8819064,0.00021,2]
[321722041,1712461840129,-2083.175,0.00021,2]
[321722042,1712461840141,-814.90999962,0.00021,2]
[321722067,1712461842994,-5451.24617563,0.00021,2]
[321722068,1712461843167,-273.221,0.00021,2]
[321722076,1712461845777,-323.37009638,0.00021,2]
[321722077,1712461845791,-554.18566314,0.00021,2]
[321722078,1712461846045,-508.5,0.00021,2]
[321722079,1712461851779,631.59606109,0.00020378,2]
[321722080,1712461855046,20123.74639395,0.0001873,2]
[321722081,1712461856231,1033.9663475,0.0001873,2]
[321722082,1712461861207,279.59005562,0.00020381,2]
[321722083,1712461861518,1212.63211823,0.0002,2]
[321722084,1712461863291,155.78776402,0.00019513,2]
[321722085,1712461894915,3014.0262,0.00020499,2]
[321722087,1712461912480,3511.0,0.0003,30]
[321722088,1712461913675,883.5557,0.00020499,2]
[321722089,1712461917212,5042.59857226,6.94e-05,2]
[321722090,1712461917898,2106.0,0.0003,30]
[321722091,1712461919864,1468.23214349,0.00020499,2]
[321722092,1712461921265,1133.12028447,0.00020499,2]
[321722093,1712461924273,1038.24058336,0.00020499,2]
[321722094,1712461926568,19629.70453164,0.00020499,2]
[321722095,1712461927946,42494.85911985,0.00020499,2]
[321722096,1712461935914,1204.79772512,0.00020499,2]
[321722097,1712461937285,516.59093556,0.00020499,2]
[321722098,1712461937904,200.0,0.0002029,2]
[321722099,1712461941922,10687.29623182,0.00020499,2]
[321722100,1712461941946,8733.67688355,0.00020499,2]
[321722101,1712461942568,9343.01699957,0.00020499,2]
[321722102,1712461944287,1045.31501081,0.00020499,2]
[321722103,1712461950134,591.24770504,0.00015,2]
[321722105,1712461951573,263.73,0.00020264,2]
[321722106,1712461952296,1819.84340103,0.0002029,2]
[321722107,1712461952321,128.89659897,0.0002029,2]
[321722109,1712461970867,1000.0,0.0003,30]
[321722111,1712462002825,1000.0,0.0003,30]
[321722113,1712462005439,1000.0,0.0003,30]
[321722114,1712462006593,1000.0,0.0003,30]
[321722115,1712462007831,1000.0,0.0003,30]
[321722116,1712462008972,1000.0,0.0003,30]
[321722117,1712462009982,1000.0,0.0003,30]
[321722118,1712462011083,1000.0,0.0003,30]
[321722119,1712462012202,1000.0,0.0003,30]
[321722120,1712462013258,1000.0,0.0003,30]
[321722121,1712462014562,287.50882586,0.0002029,2]
[321722122,1712462015182,1000.0,0.0003,30]
[321722123,1712462017222,17172.45186242,0.0002029,2]
[321722124,1712462017272,1000.0,0.0003,30]
[321722125,1712462017328,1000.0,0.0003,30]
[321722126,1712462017921,1000.0,0.0003,30]
[321722127,1712462018868,1000.0,0.0003,30]
[321722128,1712462021794,1000.0,0.0003,30]
[321722129,1712462022915,23900.0,0.00020174,2]
[321722130,1712462023105,1000.0,0.0003,30]
[321722131,1712462024025,1000.0,0.0003,30]
[321722132,1712462024982,1000.0,0.0003,30]
[321722133,1712462025022,864.40202653,0.0002029,2]
[321722134,1712462025815,1000.0,0.0003,30]
[321722135,1712462029594,20123.74639395,0.0002029,2]
[321722136,1712462033102,1075.83,0.00020174,2]
[321722137,1712462045583,3950.0,0.0002,2]
[321722138,1712462057877,1000.0,0.0003,30]
[321722139,1712462058057,510.96276259,0.0002,2]
[321722140,1712462058158,158.69,0.00020205,2]
[321722141,1712462058394,1000.0,0.0003,30]
[321722142,1712462058946,1000.0,0.0003,30]
[321722143,1712462059379,1000.0,0.0003,30]
[321722144,1712462059900,1000.0,0.0003,30]
[321722145,1712462060676,1000.0,0.0003,30]
[321722146,1712462060861,1000.0,0.0003,30]
[321722147,1712462061509,1000.0,0.0003,30]
[321722148,1712462065155,1000.0,0.0003,30]
[321722149,1712462065634,1000.0,0.0003,30]
[321722150,1712462066039,1000.0,0.0003,30]
[321722151,1712462066513,1000.0,0.0003,30]
[321722152,1712462066976,1000.0,0.0003,30]
[321722153,1712462067446,1000.0,0.0003,30]
[321722154,1712462069087,1000.0,0.0003,30]
[321722155,1712462069576,1000.0,0.0003,30]
[321722156,1712462070017,1000.0,0.0003,30]
[321722157,1712462070198,230.01,0.00020174,2]
[321722158,1712462070366,2365.38572007,0.00015,2]
[321722159,1712462070491,1000.0,0.0003,30]
[321722160,1712462071020,1000.0,0.0003,30]
[321722161,1712462071464,1000.0,0.0003,30]
[321722162,1712462082302,1000.0,0.0003,30]
[321722163,1712462082793,1000.0,0.0003,30]
[321722164,1712462083278,1000.0,0.0003,30]
[321722165,1712462083730,1000.0,0.0003,30]
[321722166,1712462084365,1000.0,0.0003,30]
[321722167,1712462084636,1000.0,0.0003,30]
[321722168,1712462085161,1000.0,0.0003,30]
[321722169,1712462085659,1000.0,0.0003,30]
[321722170,1712462086133,1000.0,0.0003,30]
[321722171,1712462086632,1000.0,0.0003,30]
[321722172,1712462087150,1000.0,0.0003,30]
[321722173,1712462087718,1000.0,0.0003,30]
[321722174,1712462088087,1000.0,0.0003,30]
[321722175,1712462088474,1000.0,0.0003,30]
[321722176,1712462089543,1000.0,0.0003,30]
[321722177,1712462090023,1000.0,0.0003,30]
[321722178,1712462090460,1000.0,0.0003,30]
[321722179,1712462091011,1000.0,0.0003,30]
[321722180,1712462091730,1000.0,0.0003,30]
[321722181,1712462091981,1000.0,0.0003,30]
[321722182,1712462092351,1000.0,0.0003,30]
[321722183,1712462100251,1000.0,0.0003,30]
[321722184,1712462100762,1000.0,0.0003,30]
[321722185,1712462101289,1000.0,0.0003,30]
[321722186,1712462110380,203.92900507,0.00020406,2]
[321722187,1712462117906,150.67729638,0.00020406,2]
[321722188,1712462130356,174.67,0.00020164,2]
[321722189,1712462138017,296.15770931,0.00020406,2]
[321722190,1712462138878,665.37,0.00020136,2]
[321722191,1712462141491,864.40202653,0.00020406,2]
[321722192,1712462144652,234.09,0.00020103,2]
[321722193,1712462145801,1133.12028447,0.00020406,2]
[321722194,1712462146820,1000.0,0.0003,30]
[321722195,1712462148649,1000.0,0.0003,30]
[321722196,1712462150202,20123.74639395,0.00020406,2]
[321722197,1712462152016,296.15770931,0.00020406,2]
[321722198,1712462157488,998.91488047,0.00020406,2]
[321722199,1712462161322,2086.6,0.00020077,2]
[321722200,1712462161800,1133.12028447,0.00020406,2]
[321722201,1712462168019,296.15770931,0.00020406,2]
[321722202,1712462170021,18395.57648317,0.00020406,2]
[321722203,1712462176667,17677.13507953,0.00020406,2]
[321722204,1712462183807,942.39553354,0.00020406,2]
[321722205,1712462186024,226.55775208,0.00020406,2]
[321722206,1712462191398,7646.1521401,0.0002,2]
[321722207,1712462210763,1000.0,0.0003,30]
[321722208,1712462211221,1000.0,0.0003,30]
[321722209,1712462211581,171.59,0.00016062,2]
[321722210,1712462212385,1000.0,0.0003,30]
[321722211,1712462212905,1000.0,0.0003,30]
[321722212,1712462213385,1000.0,0.0003,30]
[321722213,1712462213847,1000.0,0.0003,30]
[321722214,1712462214326,1000.0,0.0003,30]
[321722215,1712462214759,1000.0,0.0003,30]
[321722216,1712462215227,1000.0,0.0003,30]
[321722217,1712462216011,1000.0,0.0003,30]
[321722218,1712462216111,1000.0,0.0003,30]
[321722219,1712462216574,1000.0,0.0003,30]
[321722220,1712462217048,1000.0,0.0003,30]
[321722221,1712462217489,1000.0,0.0003,30]
[321722222,1712462217939,1000.0,0.0003,30]
[321722223,1712462218426,1000.0,0.0003,30]
[321722224,1712462218927,1000.0,0.0003,30]
[321722225,1712462219429,1000.0,0.0003,30]
[321722226,1712462219868,1000.0,0.0003,30]
[321722227,1712462220360,1000.0,0.0003,30]
[321722228,1712462220805,1000.0,0.0003,30]
[321722229,1712462221271,1000.0,0.0003,30]
[321722230,1712462221372,2509.59,0.00020083,2]
[321722231,1712462221886,1000.0,0.0003,30]
[321722232,1712462222496,1000.0,0.0003,30]
[321722233,1712462222993,1000.0,0.0003,30]
[321722234,1712462223446,1000.0,0.0003,30]
[321722235,1712462223908,1000.0,0.0003,30]
[321722236,1712462224373,1000.0,0.0003,30]
[321722237,1712462224810,1000.0,0.0003,30]
[321722238,1712462225393,1000.0,0.0003,30]
[321722239,1712462225743,1000.0,0.0003,30]
[321722240,1712462226316,1000.0,0.0003,30]
[321722241,1712462226639,1000.0,0.0003,30]
[321722242,1712462227108,1000.0,0.0003,30]
[321722243,1712462227622,1000.0,0.0003,30]
[321722244,1712462228070,1000.0,0.0003,30]
[321722245,1712462228514,1000.0,0.0003,30]
[321722246,1712462229020,1000.0,0.0003,30]
[321722247,1712462229508,1000.0,0.0003,30]
[321722248,1712462230008,1000.0,0.0003,30]
[321722249,1712462230496,1000.0,0.0003,30]
[321722250,1712462230964,1000.0,0.0003,30]
[321722251,1712462231439,1000.0,0.0003,30]
[321722252,1712462231947,1000.0,0.0003,30]
[321722253,1712462232415,1000.0,0.0003,30]
[321722254,1712462232871,1000.0,0.0003,30]
[321722255,1712462233330,1000.0,0.0003,30]
[321722256,1712462233818,1000.0,0.0003,30]
[321722257,1712462234289,1000.0,0.0003,30]
[321722258,1712462234762,1000.0,0.0003,30]
[321722259,1712462235524,1000.0,0.0003,30]
[321722260,1712462235731,1000.0,0.0003,30]
[321722261,1712462236182,1000.0,0.0003,30]
[321722262,1712462236697,1000.0,0.0003,30]
[321722263,1712462237146,1000.0,0.0003,30]
[321722264,1712462237585,1000.0,0.0003,30]
[321722265,1712462238053,1000.0,0.0003,30]
[321722266,1712462238528,1000.0,0.0003,30]
[321722267,1712462239032,1000.0,0.0003,30]
[321722268,1712462239479,1000.0,0.0003,30]
[321722269,1712462239942,1000.0,0.0003,30]
[321722270,1712462240420,1000.0,0.0003,30]
[321722271,1712462240959,3394.83,0.00020221,2]
[321722272,1712462240986,1000.0,0.0003,30]
[321722273,1712462241558,1000.0,0.0003,30]
[321722274,1712462241917,1000.0,0.0003,30]
[321722275,1712462242438,1000.0,0.0003,30]
[321722276,1712462243717,1000.0,0.0003,30]
[321722277,1712462243964,1000.0,0.0003,30]
[321722278,1712462244443,1000.0,0.0003,30]
[321722279,1712462244886,1000.0,0.0003,30]
[321722280,1712462245323,1000.0,0.0003,30]
[321722281,1712462249407,155.0,0.000205,2]
[321722282,1712462266853,500.0,0.00020118,2]
[321722283,1712462278778,150.0,0.00020146,2]
[321722284,1712462295371,200.0,0.00020118,2]
[321722285,1712462312181,600.63,0.00018174,2]
[321722286,1712462312400,600.63,0.00020438,2]
[321722287,1712462329351,1513.49,0.00020066,2]
[321722288,1712462344200,2228.32,0.00020062,2]
[321722289,1712462361817,1784.64,0.00020062,2]
[321722290,1712462380071,1300.83,0.00020088,2]
[321722291,1712462383269,1728.41,0.00020088,2]
[321722292,1712462397186,3209.43,0.00020139,2]
[321722293,1712462399722,152.0,0.00029984,30]
[321722294,1712462404258,16000.0,0.0003,30]
[321722295,1712462425155,5350.0,0.0002488,22]
[321722296,1712462448859,250.0,0.00020112,2]
[321722297,1712462550278,4976.41,0.0002,2]